fUSD/lending_fUSD_20240329
["ID","MTS","AMOUNT","RATE_DAILY","PERIOD"]
[320971269,1711725057284,-500.0,0.0005041,120]
[320971270,1711725057294,-1344.8,0.0005041,120]
[320971271,1711725057303,-500.0,0.0005041,120]
[320971272,1711725057312,-500.0,0.0005041,120]
[320971273,1711725057321,-540.96,0.0005041,120]
[320971274,1711725057330,-4526.07,0.0005041,120]
[320971275,1711725057339,-3423.87,0.0005041,120]
[320971276,1711725057349,-500.0,0.0005041,120]
[320971277,1711725057357,-500.0,0.0005041,120]
[320971278,1711725057367,-500.0,0.0005041,120]
[320971279,1711725057376,-500.0,0.0005041,120]
[320971280,1711725057385,-500.0,0.0005041,120]
[320971281,1711725057394,-500.0,0.0005041,120]
[320971282,1711725057402,-500.0,0.0005041,120]
[320971283,1711725057411,-500.0,0.0005041,120]
[320971284,1711725057420,-736.71,0.0005041,120]
[320971285,1711725057429,-500.0,0.0005041,120]
[320971286,1711725057439,-500.0,0.0005041,120]
[320971287,1711725057448,-500.0,0.0005041,120]
[320971288,1711725057457,-500.0,0.0005041,120]
[320971289,1711725057466,-500.0,0.0005041,120]
[320971290,1711725057475,-500.0,0.0005041,120]
[320971291,1711725057484,-784.08,0.0005041,21]
[320971292,1711725057493,-1932.64,0.0005041,120]
[320971293,1711725057502,-587.66,0.0005041,120]
[320971294,1711725057511,-616.86,0.0005041,120]
[320971295,1711725057520,-500.0,0.0005041,120]
[320971296,1711725057529,-500.0,0.0005041,120]
[320971297,1711725057538,-4065.91,0.0005041,120]
[320971298,1711725057549,-1193.78,0.0005041,120]
[320971299,1711725057558,-500.0,0.0005041,120]
[320971300,1711725057567,-500.0,0.0005041,120]
[320971301,1711725057577,-500.0,0.0005041,120]
[320971302,1711725057586,-1940.59,0.0005041,120]
[320971303,1711725057595,-500.0,0.0005041,120]
[320971304,1711725057604,-500.0,0.0005041,120]
[320971305,1711725057613,-951.41,0.0005041,120]
[320971306,1711725057622,-500.0,0.0005041,120]
[320971307,1711725057632,-500.0,0.0005041,120]
[320971308,1711725057641,-500.0,0.0005041,120]
[320971309,1711725057650,-500.05,0.0005041,120]
[320971310,1711725057659,-853.25,0.0005041,120]
[320971311,1711725057668,-500.0,0.0005041,120]
[320971312,1711725057677,-500.0,0.0005041,120]
[320971313,1711725057686,-570.44,0.0005041,120]
[320971314,1711725057695,-500.0,0.0005041,120]
[320971315,1711725057705,-500.0,0.0005041,120]
[320971316,1711725057714,-869.21,0.0005041,120]
[320971317,1711725057724,-500.0,0.0005041,120]
[320971318,1711725057733,-500.0,0.0005041,120]
[320971319,1711725057743,-500.0,0.0005041,120]
[320971320,1711725057752,-1369.55,0.0005041,120]
[320971321,1711725057762,-500.0,0.0005041,120]
[320971322,1711725057771,-686.24,0.0005041,120]
[320971323,1711725057781,-656.0,0.0005041,120]
[320971324,1711725057790,-1965.79,0.0005041,120]
[320971325,1711725057801,-500.0,0.0005041,120]
[320971326,1711725057812,-1009.79,0.0005041,120]
[320971327,1711725057821,-500.0,0.0005041,120]
[320971328,1711725057831,-1502.83,0.0005041,120]
[320971329,1711725057842,-716.55,0.0005041,120]
[320971330,1711725057851,-951.9,0.0005041,120]
[320971331,1711725057861,-579.39,0.0005041,120]
[320971332,1711725057870,-500.0,0.0005041,120]
[320971333,1711725057881,-588.56,0.0005041,120]
[320971334,1711725057890,-1875.29,0.0005041,120]
[320971335,1711725057899,-2456.85,0.0005041,120]
[320971336,1711725057909,-1392.05,0.0005041,120]
[320971337,1711725057918,-500.0,0.0005041,120]
[320971338,1711725057927,-500.0,0.0005041,120]
[320971339,1711725057937,-508.61,0.0005041,120]
[320971340,1711725057947,-676.92,0.0005041,120]
[320971341,1711725057956,-1162.06,0.0005041,120]
[320971342,1711725057965,-500.0,0.0005041,120]
[320971343,1711725057974,-500.0,0.0005041,120]
[320971344,1711725057984,-530.42,0.0005041,120]
[320971345,1711725057994,-909.52,0.0005041,120]
[320971346,1711725058003,-2245.64,0.0005041,120]
[320971347,1711725058012,-500.0,0.0005041,120]
[320971348,1711725058022,-561.59,0.0005041,120]
[320971349,1711725058031,-704.18,0.0005041,120]
[320971350,1711725058040,-500.0,0.0005041,120]
[320971351,1711725058049,-1923.68,0.0005041,120]
[320971352,1711725058059,-816.71,0.0005041,120]
[320971353,1711725058068,-964.16,0.0005041,120]
[320971354,1711725058077,-2964.94,0.0005041,120]
[320971355,1711725058087,-500.0,0.0005041,120]
[320971356,1711725058096,-566.67,0.0005041,120]
[320971357,1711725058106,-549.02,0.0005041,120]
[320971358,1711725058115,-500.0,0.0005041,120]
[320971359,1711725058125,-985.65,0.0005041,120]
[320971360,1711725058134,-500.0,0.0005041,120]
[320971361,1711725058143,-1183.52,0.0005041,120]
[320971362,1711725058153,-500.0,0.0005041,120]
[320971363,1711725058162,-523.71,0.0005041,120]
[320971364,1711725058172,-500.0,0.0005041,120]
[320971365,1711725058181,-1007.25,0.0005041,120]
[320971366,1711725058190,-3361.47,0.0005041,120]
[320971367,1711725058199,-500.0,0.0005041,120]
[320971368,1711725058209,-500.0,0.0005041,120]
[320971369,1711725058218,-2654.75,0.0005041,120]
[320971370,1711725058227,-500.0,0.0005041,120]
[320971371,1711725058236,-500.0,0.0005041,120]
[320971372,1711725058246,-699.89,0.0005041,120]
[320971373,1711725058255,-824.05,0.0005041,120]
[320971374,1711725058264,-500.0,0.0005041,120]
[320971375,1711725058274,-500.0,0.0005041,120]
[320971376,1711725058283,-500.0,0.0005041,120]
[320971377,1711725058292,-540.59,0.0005041,120]
[320971378,1711725058303,-500.0,0.0005041,120]
[320971379,1711725058312,-500.0,0.0005041,120]
[320971380,1711725058321,-209.56666667,0.00050411,120]
[320971381,1711725058330,-155.096706,0.00050444,60]
[320971382,1711725058338,-150.0,0.00050574,30]
[320971383,1711725058347,-347.44,0.00050574,30]
[320971384,1711725058357,-150.0,0.00050574,30]
[320971385,1711725058365,-500.0,0.00050684,120]
[320971386,1711725058375,-189.72,0.00050684,120]
[320971387,1711725058384,-500.0,0.00050684,120]
[320971388,1711725058393,-500.0,0.00050684,120]
[320971389,1711725058401,-500.0,0.00050684,120]
[320971390,1711725058410,-639.14,0.00050684,2]
[320971391,1711725058420,-597.03418171,0.00050684,120]
[320971392,1711725058429,-500.0,0.00050684,120]
[320971393,1711725058438,-215.78,0.00050684,120]
[320971394,1711725058447,-238.57,0.00050684,120]
[320971395,1711725058456,-500.0,0.00050684,120]
[320971396,1711725058465,-500.0,0.00050684,120]
[320971397,1711725058475,-326.47,0.00050684,120]
[320971398,1711725058485,-511.1,0.00050684,120]
[320971399,1711725058494,-581.76,0.00050684,120]
[320971400,1711725058503,-500.0,0.00050684,120]
[320971401,1711725058512,-500.0,0.00050684,120]
[320971402,1711725058521,-500.0,0.00050684,120]
[320971403,1711725058530,-500.0,0.00050684,120]
[320971404,1711725058539,-500.0,0.00050684,120]
[320971405,1711725058550,-500.0,0.00050684,120]
[320971406,1711725058559,-500.0,0.00050684,120]
[320971407,1711725058568,-500.0,0.00050684,120]
[320971408,1711725058577,-500.0,0.00050684,120]
[320971409,1711725058586,-500.0,0.00050684,120]
[320971410,1711725058595,-500.0,0.00050684,120]
[320971411,1711725058605,-500.0,0.00050684,120]
[320971412,1711725058614,-565.45,0.00050684,120]
[320971413,1711725058623,-500.0,0.00050684,120]
[320971414,1711725058632,-500.0,0.00050684,120]
[320971415,1711725058641,-500.0,0.00050684,120]
[320971416,1711725058649,-4432.67,0.00050684,120]
[320971417,1711725058658,-500.0,0.00050684,120]
[320971418,1711725058667,-454.53,0.00050684,120]
[320971419,1711725058677,-500.0,0.00050684,120]
[320971420,1711725058686,-500.0,0.00050684,120]
[320971421,1711725058695,-1344.8,0.00050684,120]
[320971422,1711725058704,-500.0,0.00050684,120]
[320971423,1711725058713,-500.0,0.00050684,120]
[320971424,1711725058722,-540.96,0.00050684,120]
[320971425,1711725058731,-4526.07,0.00050684,120]
[320971426,1711725058740,-3423.87,0.00050684,120]
[320971427,1711725058750,-500.0,0.00050684,120]
[320971428,1711725058759,-500.0,0.00050684,120]
[320971429,1711725058768,-500.0,0.00050684,120]
[320971430,1711725058777,-387.91,0.00050684,120]
[320971431,1711725058786,-500.0,0.00050684,120]
[320971432,1711725058796,-500.0,0.00050684,120]
[320971433,1711725058805,-500.0,0.00050684,120]
[320971434,1711725058815,-500.0,0.00050684,120]
[320971435,1711725058826,-736.71,0.00050684,120]
[320971436,1711725058835,-500.0,0.00050684,120]
[320971437,1711725058845,-500.0,0.00050684,120]
[320971438,1711725058854,-500.0,0.00050684,120]
[320971439,1711725058863,-587.4418503,0.00050684,120]
[320971440,1711725058872,-500.0,0.00050684,120]
[320971441,1711725058882,-500.0,0.00050684,120]
[320971442,1711725058892,-784.08,0.00050684,21]
[320971443,1711725058901,-1932.64,0.00050684,120]
[320971444,1711725058911,-587.66,0.00050684,120]
[320971445,1711725059060,-616.86,0.00050684,120]
[320971446,1711725059069,-500.0,0.00050684,120]
[320971447,1711725059078,-500.0,0.00050684,120]
[320971448,1711725059087,-4065.91,0.00050684,120]
[320971449,1711725059096,-1193.78,0.00050684,120]
[320971450,1711725059106,-500.0,0.00050684,120]
[320971451,1711725059115,-500.0,0.00050684,120]
[320971452,1711725059124,-500.0,0.00050684,120]
[320971453,1711725059133,-1940.59,0.00050684,120]
[320971454,1711725059143,-500.0,0.00050684,120]
[320971455,1711725059152,-500.0,0.00050684,120]
[320971456,1711725059161,-951.41,0.00050684,120]
[320971457,1711725059170,-500.0,0.00050684,120]
[320971458,1711725059180,-500.0,0.00050684,120]
[320971459,1711725059189,-500.0,0.00050684,120]
[320971460,1711725059198,-500.05,0.00050684,120]
[320971461,1711725059208,-853.25,0.00050684,120]
[320971462,1711725059217,-500.0,0.00050684,120]
[320971463,1711725059227,-500.0,0.00050684,120]
[320971464,1711725059236,-570.44,0.00050684,120]
[320971465,1711725059246,-500.0,0.00050684,120]
[320971466,1711725059256,-500.0,0.00050684,120]
[320971467,1711725059266,-869.21,0.00050684,120]
[320971468,1711725059275,-500.0,0.00050684,120]
[320971469,1711725059285,-500.0,0.00050684,120]
[320971470,1711725059293,-500.0,0.00050684,120]
[320971471,1711725059303,-1369.55,0.00050684,120]
[320971472,1711725059312,-500.0,0.00050684,120]
[320971473,1711725059321,-686.24,0.00050684,120]
[320971474,1711725059330,-656.0,0.00050684,120]
[320971475,1711725059339,-1965.79,0.00050684,120]
[320971476,1711725059348,-500.0,0.00050684,120]
[320971477,1711725059358,-1009.79,0.00050684,120]
[320971478,1711725059367,-500.0,0.00050684,120]
[320971479,1711725059376,-1502.83,0.00050684,120]
[320971480,1711725059385,-716.55,0.00050684,120]
[320971481,1711725059394,-951.9,0.00050684,120]
[320971482,1711725059403,-579.39,0.00050684,120]
[320971483,1711725059413,-500.0,0.00050684,120]
[320971484,1711725059422,-588.56,0.00050684,120]
[320971485,1711725059432,-1875.29,0.00050684,120]
[320971486,1711725059441,-2456.85,0.00050684,120]
[320971487,1711725059450,-1392.05,0.00050684,120]
[320971488,1711725059461,-500.0,0.00050684,120]
[320971489,1711725059471,-500.0,0.00050684,120]
[320971490,1711725059481,-508.61,0.00050684,120]
[320971491,1711725059491,-676.92,0.00050684,120]
[320971492,1711725059500,-1162.06,0.00050684,120]
[320971493,1711725059510,-500.0,0.00050684,120]
[320971494,1711725059519,-500.0,0.00050684,120]
[320971495,1711725059529,-530.42,0.00050684,120]
[320971496,1711725059538,-909.52,0.00050684,120]
[320971497,1711725059549,-2245.64,0.00050684,120]
[320971498,1711725059558,-500.0,0.00050684,120]
[320971499,1711725059567,-561.59,0.00050684,120]
[320971500,1711725059576,-704.18,0.00050684,120]
[320971501,1711725059585,-500.0,0.00050684,120]
[320971502,1711725059594,-1923.68,0.00050684,120]
[320971503,1711725059603,-964.16,0.00050684,120]
[320971504,1711725059612,-816.71,0.00050684,120]
[320971505,1711725059621,-2964.94,0.00050684,120]
[320971506,1711725059629,-500.0,0.00050684,120]
[320971507,1711725059638,-566.67,0.00050684,120]
[320971508,1711725059647,-549.02,0.00050684,120]
[320971509,1711725059656,-500.0,0.00050684,120]
[320971510,1711725059665,-985.65,0.00050684,120]
[320971511,1711725059673,-500.0,0.00050684,120]
[320971512,1711725059682,-1183.52,0.00050684,120]
[320971513,1711725059691,-500.0,0.00050684,120]
[320971514,1711725059700,-151.0,0.00050684,120]
[320971515,1711725059709,-523.71,0.00050684,120]
[320971516,1711725059717,-500.0,0.00050684,120]
[320971517,1711725059726,-1007.25,0.00050684,120]
[320971518,1711725059735,-3361.47,0.00050684,120]
[320971519,1711725059744,-500.0,0.00050684,120]
[320971520,1711725059752,-500.0,0.00050684,120]
[320971521,1711725059761,-151.0,0.00050684,120]
[320971522,1711725059770,-2654.75,0.00050684,120]
[320971523,1711725059778,-500.0,0.00050684,120]
[320971524,1711725059787,-500.0,0.00050684,120]
[320971525,1711725059797,-699.89,0.00050684,120]
[320971526,1711725059810,-824.05,0.00050684,120]
[320971527,1711725059819,-500.0,0.00050684,120]
[320971528,1711725059828,-537.3971664,0.00050684,120]
[320971529,1711725059837,-500.0,0.00050684,120]
[320971530,1711725059846,-151.0,0.00050684,120]
[320971531,1711725059855,-151.0,0.00050684,14]
[320971532,1711725059863,-540.59,0.00050684,120]
[320971533,1711725059872,-500.0,0.00050684,120]
[320971534,1711725059881,-151.0,0.00050684,14]
[320971535,1711725059890,-500.0,0.00050684,120]
[320971536,1711725059898,-150.0,0.00050725,120]
[320971537,1711725059907,-157.78437131,0.00050773,60]
[320971538,1711725059918,-153.92551782,0.00050874,60]
[320971539,1711725059927,-5127.21056567,0.0005088,120]
[320971540,1711725059935,-2734.8,0.00050885,30]
[320971541,1711725059944,-500.0,0.00050958,120]
[320971542,1711725059953,-302.13619661,0.00050958,120]
[320971543,1711725059964,-500.0,0.00050958,120]
[320971544,1711725059973,-419.54,0.00050958,120]
[320971545,1711725059982,-188.56,0.00050958,120]
[320971546,1711725059991,-500.0,0.00050958,120]
[320971547,1711725060000,-500.0,0.00050958,120]
[320971548,1711725060009,-581.76,0.00050958,120]
[320971549,1711725060019,-500.0,0.00050958,120]
[320971550,1711725060029,-500.0,0.00050958,120]
[320971551,1711725060038,-478.97,0.00050958,120]
[320971552,1711725060049,-500.0,0.00050958,120]
[320971553,1711725060058,-500.0,0.00050958,120]
[320971554,1711725060068,-500.0,0.00050958,120]
[320971555,1711725060077,-500.0,0.00050958,120]
[320971556,1711725060086,-500.0,0.00050958,120]
[320971557,1711725060096,-283.46,0.00050958,120]
[320971558,1711725060106,-500.0,0.00050958,120]
[320971559,1711725060115,-500.0,0.00050958,120]
[320971560,1711725060124,-500.0,0.00050958,120]
[320971561,1711725060133,-500.0,0.00050958,120]
[320971562,1711725060142,-260.21,0.00050958,120]
[320971564,1711725060151,-500.0,0.00050958,120]
[320971565,1711725060160,-4432.67,0.00050958,120]
[320971566,1711725060170,-500.0,0.00050958,120]
[320971567,1711725060179,-500.0,0.00050958,120]
[320971568,1711725060188,-500.0,0.00050958,120]
[320971569,1711725060198,-1344.8,0.00050958,120]
[320971570,1711725060207,-500.0,0.00050958,120]
[320971571,1711725060216,-500.0,0.00050958,120]
[320971572,1711725060225,-540.96,0.00050958,120]
[320971573,1711725060234,-4526.07,0.00050958,120]
[320971574,1711725060244,-3423.87,0.00050958,120]
[320971575,1711725060253,-500.0,0.00050958,120]
[320971576,1711725060263,-500.0,0.00050958,120]
[320971577,1711725060272,-500.0,0.00050958,120]
[320971578,1711725060281,-500.0,0.00050958,120]
[320971579,1711725060291,-500.0,0.00050958,120]
[320971580,1711725060301,-500.0,0.00050958,120]
[320971581,1711725060310,-500.0,0.00050958,120]
[320971582,1711725060319,-736.71,0.00050958,120]
[320971583,1711725060328,-500.0,0.00050958,120]
[320971584,1711725060337,-500.0,0.00050958,120]
[320971585,1711725060346,-500.0,0.00050958,120]
[320971586,1711725060355,-500.0,0.00050958,120]
[320971587,1711725060364,-500.0,0.00050958,120]
[320971588,1711725060373,-784.08,0.00050958,21]
[320971589,1711725060382,-1932.64,0.00050958,120]
[320971590,1711725060392,-587.66,0.00050958,120]
[320971591,1711725060400,-616.86,0.00050958,120]
[320971592,1711725060410,-500.0,0.00050958,120]
[320971593,1711725060419,-500.0,0.00050958,120]
[320971594,1711725060427,-4065.91,0.00050958,120]
[320971595,1711725060436,-1193.78,0.00050958,120]
[320971596,1711725060445,-500.0,0.00050958,120]
[320971597,1711725060454,-500.0,0.00050958,120]
[320971598,1711725060464,-500.0,0.00050958,120]
[320971599,1711725060473,-1940.59,0.00050958,120]
[320971600,1711725060482,-500.0,0.00050958,120]
[320971601,1711725060490,-951.41,0.00050958,120]
[320971602,1711725060499,-500.0,0.00050958,120]
[320971603,1711725060508,-500.0,0.00050958,120]
[320971604,1711725060518,-500.0,0.00050958,120]
[320971605,1711725060527,-500.0,0.00050958,120]
[320971606,1711725060537,-500.05,0.00050958,120]
[320971607,1711725060548,-853.25,0.00050958,120]
[320971608,1711725060557,-500.0,0.00050958,120]
[320971609,1711725060566,-500.0,0.00050958,120]
[320971610,1711725060575,-570.44,0.00050958,120]
[320971611,1711725060584,-500.0,0.00050958,120]
[320971612,1711725060594,-500.0,0.00050958,120]
[320971613,1711725060602,-869.21,0.00050958,120]
[320971614,1711725060611,-500.0,0.00050958,120]
[320971615,1711725060621,-500.0,0.00050958,120]
[320971616,1711725060630,-500.0,0.00050958,120]
[320971617,1711725060639,-1369.55,0.00050958,120]
[320971618,1711725060648,-500.0,0.00050958,120]
[320971619,1711725060657,-686.24,0.00050958,120]
[320971620,1711725060667,-656.0,0.00050958,120]
[320971621,1711725060676,-1965.79,0.00050958,120]
[320971622,1711725060685,-500.0,0.00050958,120]
[320971623,1711725060695,-1009.79,0.00050958,120]
[320971624,1711725060704,-500.0,0.00050958,120]
[320971625,1711725060713,-1502.83,0.00050958,120]
[320971626,1711725060722,-716.55,0.00050958,120]
[320971627,1711725060731,-951.9,0.00050958,120]
[320971628,1711725060740,-579.39,0.00050958,120]
[320971629,1711725060749,-500.0,0.00050958,120]
[320971630,1711725060758,-588.56,0.00050958,120]
[320971631,1711725060767,-1875.29,0.00050958,120]
[320971632,1711725060776,-2456.85,0.00050958,120]
[320971633,1711725060785,-1392.05,0.00050958,120]
[320971634,1711725060794,-500.0,0.00050958,120]
[320971635,1711725060807,-500.0,0.00050958,120]
[320971636,1711725060817,-151.0,0.00050958,30]
[320971637,1711725060827,-151.0,0.00050958,30]
[320971638,1711725060836,-508.61,0.00050958,120]
[320971639,1711725060845,-676.92,0.00050958,120]
[320971640,1711725060854,-1162.06,0.00050958,120]
[320971641,1711725060864,-500.0,0.00050958,120]
[320971642,1711725060873,-153.073829,0.00050958,120]
[320971643,1711725060883,-500.0,0.00050958,120]
[320971644,1711725060895,-530.42,0.00050958,120]
[320971645,1711725060904,-909.52,0.00050958,120]
[320971646,1711725060913,-295.675516,0.00050958,30]
[320971647,1711725060922,-2245.64,0.00050958,120]
[320971648,1711725060931,-602.34,0.00050958,120]
[320971649,1711725060941,-561.59,0.00050958,120]
[320971650,1711725060950,-752.817963,0.00050958,120]
[320971651,1711725060959,-704.18,0.00050958,120]
[320971652,1711725060968,-752.817963,0.00050958,120]
[320971653,1711725060976,-500.0,0.00050958,120]
[320971654,1711725060986,-1923.68,0.00050958,120]
[320971655,1711725060996,-964.16,0.00050958,120]
[320971656,1711725061005,-816.71,0.00050958,120]
[320971657,1711725061013,-2964.94,0.00050958,120]
[320971658,1711725061022,-151.0,0.00050958,120]
[320971659,1711725061031,-500.0,0.00050958,120]
[320971660,1711725061040,-151.0,0.00050958,120]
[320971661,1711725061051,-549.02,0.00050958,120]
[320971662,1711725061061,-566.67,0.00050958,120]
[320971663,1711725061070,-500.0,0.00050958,120]
[320971664,1711725061079,-985.65,0.00050958,120]
[320971665,1711725061088,-500.0,0.00050958,120]
[320971666,1711725061098,-1183.52,0.00050958,120]
[320971667,1711725061107,-500.0,0.00050958,120]
[320971668,1711725061116,-151.0,0.00050958,120]
[320971669,1711725061126,-151.0,0.00050958,120]
[320971670,1711725061135,-523.71,0.00050958,120]
[320971671,1711725061145,-500.0,0.00050958,120]
[320971672,1711725061154,-1007.25,0.00050958,120]
[320971673,1711725061163,-3361.47,0.00050958,120]
[320971674,1711725061173,-500.0,0.00050958,120]
[320971675,1711725061182,-187.544332,0.00050958,30]
[320971676,1711725061191,-500.0,0.00050958,120]
[320971677,1711725061200,-187.544332,0.00050958,30]
[320971678,1711725061209,-2654.75,0.00050958,120]
[320971679,1711725061218,-290.56,0.00050958,120]
[320971680,1711725061228,-500.0,0.00050958,120]
[320971681,1711725061238,-699.89,0.00050958,120]
[320971682,1711725061247,-824.05,0.00050958,120]
[320971683,1711725061256,-500.0,0.00050958,120]
[320971684,1711725061266,-500.0,0.00050958,120]
[320971685,1711725061276,-540.59,0.00050958,120]
[320971686,1711725061285,-500.0,0.00050958,120]
[320971687,1711725061294,-700.0,0.00051,3]
[320971688,1711725061305,-10000.0,0.00051,120]
[320971689,1711725061315,-17598.0,0.00051,120]
[320971690,1711725061324,-209.56666667,0.00051014,120]
[320971691,1711725061333,-152.39,0.00051096,30]
[320971692,1711725061342,-152.41256319,0.00051097,60]
[320971693,1711725061351,-151.4857083,0.00051229,60]
[320971694,1711725061360,-500.0,0.00051231,120]
[320971695,1711725061369,-269.34,0.00051232,120]
[320971696,1711725061378,-632.8991922,0.00051232,120]
[320971697,1711725061386,-500.0,0.00051232,120]
[320971698,1711725061395,-500.0,0.00051232,120]
[320971699,1711725061404,-581.76,0.00051232,120]
[320971700,1711725061413,-500.0,0.00051232,120]
[320971701,1711725061422,-500.0,0.00051232,120]
[320971702,1711725061431,-500.0,0.00051232,120]
[320971703,1711725061439,-475.04,0.00051232,120]
[320971704,1711725061448,-500.0,0.00051232,120]
[320971705,1711725061457,-500.0,0.00051232,120]
[320971706,1711725061466,-500.0,0.00051232,120]
[320971707,1711725061475,-500.0,0.00051232,120]
[320971708,1711725061484,-500.0,0.00051232,120]
[320971709,1711725061493,-500.0,0.00051232,120]
[320971710,1711725061501,-500.0,0.00051232,120]
[320971711,1711725061510,-500.0,0.00051232,120]
[320971712,1711725061520,-4432.67,0.00051232,120]
[320971713,1711725061529,-500.0,0.00051232,120]
[320971714,1711725061538,-500.0,0.00051232,120]
[320971715,1711725061546,-500.0,0.00051232,120]
[320971716,1711725061557,-1344.8,0.00051232,120]
[320971717,1711725061566,-500.0,0.00051232,120]
[320971718,1711725061576,-500.0,0.00051232,120]
[320971719,1711725061585,-540.96,0.00051232,120]
[320971720,1711725061594,-4526.07,0.00051232,120]
[320971721,1711725061604,-3423.87,0.00051232,120]
[320971722,1711725061613,-500.0,0.00051232,120]
[320971723,1711725061622,-500.0,0.00051232,120]
[320971724,1711725061631,-500.0,0.00051232,120]
[320971725,1711725061640,-427.53,0.00051232,120]
[320971726,1711725061649,-500.0,0.00051232,120]
[320971727,1711725061658,-500.0,0.00051232,120]
[320971728,1711725061667,-500.0,0.00051232,120]
[320971729,1711725061676,-736.71,0.00051232,120]
[320971730,1711725061685,-458.02,0.00051232,120]
[320971731,1711725061694,-500.0,0.00051232,120]
[320971732,1711725061703,-500.0,0.00051232,120]
[320971733,1711725061712,-500.0,0.00051232,120]
[320971734,1711725061721,-500.0,0.00051232,120]
[320971735,1711725061730,-784.08,0.00051232,21]
[320971736,1711725061739,-1932.64,0.00051232,120]
[320971737,1711725061748,-587.66,0.00051232,120]
[320971738,1711725061757,-616.86,0.00051232,120]
[320971739,1711725061767,-500.0,0.00051232,120]
[320971740,1711725061776,-500.0,0.00051232,120]
[320971741,1711725061785,-4065.91,0.00051232,120]
[320971742,1711725061794,-1193.78,0.00051232,120]
[320971743,1711725061805,-500.0,0.00051232,120]
[320971744,1711725061816,-500.0,0.00051232,120]
[320971745,1711725061825,-500.0,0.00051232,120]
[320971746,1711725061834,-1940.59,0.00051232,120]
[320971747,1711725061843,-151.0,0.00051232,120]
[320971748,1711725061852,-500.0,0.00051232,120]
[320971749,1711725061862,-951.41,0.00051232,120]
[320971750,1711725061871,-500.0,0.00051232,120]
[320971751,1711725061880,-500.0,0.00051232,120]
[320971752,1711725062026,-500.0,0.00051232,120]
[320971753,1711725062036,-153.782038,0.00051232,120]
[320971754,1711725062045,-500.0,0.00051232,120]
[320971755,1711725062057,-500.05,0.00051232,120]
[320971756,1711725062066,-853.25,0.00051232,120]
[320971757,1711725062076,-500.0,0.00051232,120]
[320971758,1711725062086,-500.0,0.00051232,120]
[320971759,1711725062095,-151.0,0.00051232,120]
[320971760,1711725062105,-570.44,0.00051232,120]
[320971761,1711725062114,-500.0,0.00051232,120]
[320971762,1711725062124,-151.0,0.00051232,120]
[320971763,1711725062133,-151.0,0.00051232,120]
[320971764,1711725062142,-500.0,0.00051232,120]
[320971765,1711725062151,-869.21,0.00051232,120]
[320971766,1711725062161,-500.0,0.00051232,120]
[320971767,1711725062170,-500.0,0.00051232,120]
[320971768,1711725062179,-500.0,0.00051232,120]
[320971769,1711725062189,-1369.55,0.00051232,120]